fUSD/lending_fUSD_20240518
["ID","MTS","AMOUNT","RATE_DAILY","PERIOD"]
[327402254,1716043839752,-426.8393698,0.00027943,2]
[327402255,1716043839762,-500.0,0.00027943,2]
[327402256,1716043839772,-176.37396264,0.00027943,2]
[327402257,1716043839782,-500.0,0.00027943,2]
[327402258,1716043839791,-500.0,0.00027943,2]
[327402259,1716043839801,-500.0,0.00027943,2]
[327402260,1716043839811,-500.0,0.00027943,2]
[327402261,1716043839821,-500.0,0.00027943,2]
[327402262,1716043839831,-500.0,0.00027943,2]
[327402263,1716043839841,-500.0,0.00027943,2]
[327402264,1716043839850,-499.34114007,0.00027943,2]
[327402266,1716043840244,-507.06,0.00027669,2]
[327402267,1716043840254,-500.0,0.00027669,2]
[327402268,1716043840264,-500.0,0.0002767,2]
[327402269,1716043840273,-0.65885993,0.00027943,2]
[327402270,1716043840286,-500.0,0.00027943,2]
[327402271,1716043840296,-204.83,0.00027943,2]
[327402272,1716043840306,-500.0,0.00027943,2]
[327402273,1716043840315,-500.0,0.00027943,2]
[327402274,1716043840325,-500.0,0.00027943,2]
[327402275,1716043840334,-500.0,0.00027943,2]
[327402276,1716043840344,-500.0,0.00027943,2]
[327402277,1716043840353,-500.0,0.00027943,2]
[327402278,1716043840365,-500.0,0.00027943,2]
[327402279,1716043840374,-514.70364552,0.00027943,2]
[327402280,1716043840383,-500.0,0.00027943,2]
[327402281,1716043840392,-537.14315394,0.00027943,2]
[327402282,1716043840402,-500.0,0.00027943,2]
[327402283,1716043840411,-500.0,0.00027943,2]
[327402284,1716043840422,-500.0,0.00027943,2]
[327402286,1716043840431,-500.0,0.00027943,2]
[327402288,1716043840441,-195.63514034,0.00027943,2]
[327402290,1716043840451,-500.0,0.00027943,2]
[327402292,1716043840460,-575.84,0.00027943,2]
[327402295,1716043840469,-552.52642064,0.00027943,2]
[327402298,1716043840479,-500.0,0.00027943,2]
[327402301,1716043840490,-500.0,0.00027943,2]
[327402304,1716043840500,-500.0,0.00027943,2]
[327402307,1716043840509,-500.0,0.00027943,2]
[327402310,1716043840519,-500.0,0.00027943,2]
[327402312,1716043840529,-500.0,0.00027943,2]
[327402314,1716043840539,-500.0,0.00027943,2]
[327402316,1716043840548,-500.0,0.00027943,2]
[327402318,1716043840559,-500.0,0.00027943,2]
[327402320,1716043840568,-500.0,0.00027943,2]
[327402322,1716043840578,-500.0,0.00027943,2]
[327402324,1716043840587,-500.0,0.00027943,2]
[327402326,1716043840597,-488.18553993,0.00027943,2]
[327402329,1716043840610,-11.81446007,0.00027943,2]
[327402331,1716043840619,-276.70961946,0.00027943,2]
[327402333,1716043840632,-223.29038054,0.00027943,2]
[327402335,1716043840642,-274.98585945,0.00027943,2]
[327402337,1716043840654,-225.01414055,0.00027943,2]
[327402339,1716043840663,-500.0,0.00027943,2]
[327402341,1716043840673,-500.0,0.00027943,2]
[327402343,1716043840682,-527.97266569,0.00027943,2]
[327402345,1716043840691,-500.0,0.00027943,2]
[327402347,1716043840701,-500.0,0.00027943,2]
[327402349,1716043840710,-500.0,0.00027943,2]
[327402351,1716043840719,-500.0,0.00027943,2]
[327402353,1716043840728,-500.0,0.00027943,2]
[327402355,1716043840738,-174.85,0.00027943,2]
[327402357,1716043840748,-500.0,0.00027943,2]
[327402359,1716043840757,-500.0,0.00027943,2]
[327402361,1716043840767,-500.0,0.00027943,2]
[327402363,1716043840777,-504.18919303,0.00027943,2]
[327402365,1716043840787,-786.04,0.00027943,2]
[327402367,1716043840797,-500.0,0.00027943,2]
[327402369,1716043840807,-500.0,0.00027943,2]
[327402372,1716043840817,-500.0,0.00027943,2]
[327402374,1716043840826,-500.0,0.00027943,2]
[327402376,1716043840836,-500.0,0.00027943,2]
[327402378,1716043840846,-500.0,0.00027943,2]
[327402380,1716043840855,-500.0,0.00027943,2]
[327402381,1716043840865,-1056.08,0.00027943,2]
[327402384,1716043840875,-500.0,0.00027943,2]
[327402386,1716043840884,-500.0,0.00027943,2]
[327402388,1716043840893,-505.14551602,0.00027943,2]
[327402390,1716043840903,-628.44,0.00027943,2]
[327402392,1716043840912,-553.98,0.00027943,2]
[327402394,1716043840922,-505.38683193,0.00027943,2]
[327402396,1716043840931,-513.0816824,0.00027943,2]
[327402398,1716043840941,-500.0,0.00027943,2]
[327402400,1716043840950,-533.33,0.00027943,2]
[327402402,1716043840959,-500.0,0.00027943,2]
[327402404,1716043840969,-506.88057863,0.00027943,2]
[327402406,1716043840978,-500.0,0.00027943,2]
[327402408,1716043840987,-500.0,0.00027943,2]
[327402410,1716043840999,-500.0,0.00027943,2]
[327402412,1716043841008,-500.0,0.00027943,2]
[327402414,1716043841017,-542.6509889,0.00027943,2]
[327402416,1716043841027,-500.0,0.00027943,2]
[327402418,1716043841036,-500.0,0.00027943,2]
[327402420,1716043841045,-500.0,0.00027943,2]
[327402422,1716043841055,-500.0,0.00027943,2]
[327402424,1716043841064,-525.27,0.00027943,2]
[327402426,1716043841074,-500.0,0.00027943,2]
[327402428,1716043841083,-595.46854081,0.00027943,2]
[327402430,1716043841092,-631.26,0.00027943,2]
[327402432,1716043841102,-500.0,0.00027943,2]
[327402434,1716043841113,-1903.5,0.00027943,2]
[327402436,1716043841122,-500.0,0.00027943,2]
[327402438,1716043841131,-1461.37,0.00027943,2]
[327402440,1716043841140,-179.46665447,0.00027943,2]
[327402442,1716043841149,-508.39692262,0.00027943,2]
[327402444,1716043841159,-3037.48,0.00027943,2]
[327402446,1716043841168,-500.0,0.00027943,2]
[327402448,1716043841177,-500.0,0.00027943,2]
[327402450,1716043841187,-500.0,0.00027943,2]
[327402452,1716043841196,-500.0,0.00027943,2]
[327402454,1716043841205,-500.0,0.00027943,2]
[327402455,1716043841215,-534.41,0.00027943,2]
[327402458,1716043841224,-250.27,0.00027943,2]
[327402460,1716043841233,-3002.35,0.00027943,2]
[327402461,1716043841243,-500.0,0.00027943,2]
[327402464,1716043841252,-500.0,0.00027943,2]
[327402466,1716043841262,-2677.22,0.00027943,2]
[327402468,1716043841271,-707.42,0.00027943,2]
[327402469,1716043841282,-500.0,0.00027943,2]
[327402471,1716043841293,-500.0,0.00027943,2]
[327402473,1716043841302,-500.0,0.00027943,2]
[327402476,1716043841311,-500.0,0.00027943,2]
[327402478,1716043841321,-500.0,0.00027944,2]
[327402480,1716043841331,-500.0,0.00027944,2]
[327402482,1716043841340,-500.0,0.00027944,2]
[327402484,1716043841350,-500.0,0.00027944,2]
[327402486,1716043841359,-500.0,0.00027944,2]
[327402487,1716043841373,-616.47,0.00027944,2]
[327402489,1716043841382,-584.61,0.00027944,2]
[327402491,1716043841392,-500.0,0.00027944,2]
[327402492,1716043841402,-500.0,0.00027944,2]
[327402494,1716043841411,-500.0,0.00027944,2]
[327402496,1716043841420,-500.0,0.00027944,2]
[327402498,1716043841430,-500.0,0.00027944,2]
[327402500,1716043841439,-500.0,0.00027944,2]
[327402501,1716043841449,-547.8,0.00027944,2]
[327402503,1716043841458,-365.43,0.00027944,2]
[327402505,1716043841467,-500.0,0.00027944,2]
[327402506,1716043841477,-245.68,0.00027944,2]
[327402508,1716043841486,-500.0,0.00027944,2]
[327402510,1716043841495,-508.47,0.00027944,2]
[327402512,1716043841505,-500.0,0.00027944,2]
[327402513,1716043841513,-500.0,0.00027944,2]
[327402515,1716043841522,-500.0,0.00027944,2]
[327402517,1716043841531,-679.02,0.00027944,2]
[327402519,1716043841541,-356.76,0.00027944,2]
[327402521,1716043841550,-646.11,0.00027944,2]
[327402522,1716043841559,-500.0,0.00027944,2]
[327402524,1716043841568,-500.0,0.00027944,2]
[327402526,1716043841578,-500.0,0.00027944,2]
[327402528,1716043841587,-428.73,0.00027944,2]
[327402529,1716043841596,-500.0,0.00027944,2]
[327402531,1716043841605,-500.0,0.00027944,2]
[327402533,1716043841616,-150.0,0.00027944,2]
[327402537,1716043841662,-500.0,0.00027944,2]
[327402539,1716043841672,-600.17,0.00027944,2]
[327402541,1716043841682,-500.0,0.00027944,2]
[327402543,1716043841691,-948.82,0.00027944,2]
[327402545,1716043841700,-612.27425745,0.00027944,2]
[327402546,1716043841709,-500.0,0.00027944,2]
[327402548,1716043841718,-500.0,0.00027944,2]
[327402550,1716043841727,-500.0,0.00027944,2]
[327402552,1716043841736,-2048.85,0.00027944,2]
[327402553,1716043841745,-422.63,0.00027944,2]
[327402555,1716043841754,-363.09,0.00027944,2]
[327402557,1716043841764,-728.94,0.00027944,2]
[327402559,1716043841774,-500.0,0.00027944,2]
[327402560,1716043841783,-500.0,0.00027944,2]
[327402562,1716043841793,-190.64804225,0.00027944,2]
[327402564,1716043841802,-273.7,0.00027944,2]
[327402566,1716043841811,-500.0,0.00027944,2]
[327402568,1716043841820,-500.0,0.00027944,2]
[327402569,1716043841829,-363.29,0.00027944,2]
[327402571,1716043841838,-500.0,0.00027944,2]
[327402573,1716043841848,-500.0,0.00027944,2]
[327402575,1716043841857,-500.0,0.00027944,2]
[327402576,1716043841868,-500.0,0.00027944,2]
[327402578,1716043841877,-510.99977238,0.00027944,2]
[327402580,1716043841886,-648.06,0.00027944,2]
[327402582,1716043841895,-500.0,0.00027944,2]
[327402584,1716043841904,-500.0,0.00027944,2]
[327402586,1716043841913,-500.0,0.00027944,2]
[327402587,1716043841923,-500.0,0.00027944,2]
[327402589,1716043841933,-500.0,0.00027944,2]
[327402591,1716043841942,-500.0,0.00027944,2]
[327402593,1716043841951,-500.0,0.00027944,2]
[327402595,1716043841960,-500.0,0.00027944,2]
[327402597,1716043841969,-207.96587779,0.00027944,2]
[327402598,1716043841978,-500.0,0.00027944,2]
[327402600,1716043841988,-500.0,0.00027944,2]
[327402602,1716043841997,-510.05,0.00027944,2]
[327402604,1716043842007,-500.0,0.00027944,2]
[327402606,1716043842016,-500.0,0.00027944,2]
[327402608,1716043842025,-500.0,0.00027944,2]
[327402610,1716043842035,-500.0,0.00027944,2]
[327402611,1716043842044,-500.0,0.00027944,2]
[327402613,1716043842054,-559.59,0.00027944,2]
[327402615,1716043842063,-500.0,0.00027944,2]
[327402617,1716043842072,-805.79,0.00027944,2]
[327402619,1716043842082,-500.0,0.00027944,2]
[327402621,1716043842091,-500.0,0.00027944,2]
[327402622,1716043842100,-500.0,0.00027944,2]
[327402624,1716043842109,-1678.78,0.00027944,2]
[327402626,1716043842121,-520.85,0.00027944,2]
[327402628,1716043842131,-500.0,0.00027944,2]
[327402630,1716043842140,-627.29,0.00027944,2]
[327402632,1716043842149,-500.0,0.00027944,2]
[327402634,1716043842158,-1174.18,0.00027944,2]
[327402636,1716043842168,-4870.32,0.00027944,2]
[327402637,1716043842177,-575.52,0.00027944,2]
[327402639,1716043842186,-1151.34,0.00027944,2]
[327402641,1716043842195,-500.0,0.00027944,2]
[327402643,1716043842204,-2340.96,0.00027944,2]
[327402645,1716043842214,-772.43,0.00027944,2]
[327402647,1716043842223,-500.0,0.00027944,2]
[327402648,1716043842232,-500.0,0.00027944,2]
[327402650,1716043842241,-898.6,0.00027944,2]
[327402652,1716043842249,-190.7316781,0.00027944,2]
[327402664,1716043842385,-468.3983219,0.00027944,2]
[327402666,1716043842395,-500.0,0.00027944,2]
[327402668,1716043842404,-500.0,0.00027944,2]
[327402670,1716043842414,-500.0,0.00027944,2]
[327402672,1716043842424,-500.0,0.00027944,2]
[327402674,1716043842434,-500.0,0.00027944,2]
[327402675,1716043842443,-500.0,0.00027944,2]
[327402677,1716043842454,-500.0,0.00027944,2]
[327402679,1716043842463,-659.07,0.00027944,2]
[327402681,1716043842472,-500.0,0.00027944,2]
[327402683,1716043842482,-500.0,0.00027944,2]
[327402685,1716043842491,-772.47,0.00027944,2]
[327402687,1716043842501,-500.0,0.00027944,2]
[327402688,1716043842511,-568.15,0.00027944,2]
[327402690,1716043842520,-500.0,0.00027944,2]
[327402692,1716043842529,-941.67,0.00027944,2]
[327402694,1716043842539,-500.0,0.00027944,2]
[327402696,1716043842548,-626.27,0.00027944,2]
[327402698,1716043842557,-500.0,0.00027944,2]
[327402699,1716043842566,-500.0,0.00027944,2]
[327402701,1716043842575,-500.0,0.00027944,2]
[327402702,1716043842585,-284.85766041,0.00027944,2]
[327402703,1716043842593,-500.0,0.00027944,2]
[327402704,1716043842603,-500.0,0.00027944,2]
[327402705,1716043842613,-500.0,0.00027944,2]
[327402706,1716043842625,-500.0,0.00027944,2]
[327402707,1716043842633,-500.0,0.00027944,2]
[327402708,1716043842642,-734.54,0.00027944,2]
[327402709,1716043842651,-500.0,0.00027944,2]
[327402710,1716043842660,-500.0,0.00027944,2]
[327402711,1716043842670,-500.0,0.00027944,2]
[327402712,1716043842679,-500.0,0.00027944,2]
[327402713,1716043842689,-500.0,0.00027945,2]
[327402714,1716043842698,-338.35250717,0.00027945,2]
[327402715,1716043842708,-500.0,0.00027945,2]
[327402716,1716043842717,-500.0,0.00027945,2]
[327402718,1716043842727,-521.45,0.00027945,2]
[327402720,1716043842736,-518.21,0.00027945,2]
[327402722,1716043842745,-500.0,0.00027945,2]
[327402724,1716043842755,-725.67,0.00027945,2]
[327402726,1716043842764,-500.0,0.00027945,2]
[327402728,1716043842774,-500.0,0.00027945,2]
[327402730,1716043842783,-500.0,0.00027945,2]
[327402732,1716043842793,-794.88,0.00027945,2]
[327402734,1716043842802,-500.0,0.00027945,2]
[327402736,1716043842811,-500.0,0.00027945,2]
[327402738,1716043842820,-500.0,0.00027945,2]
[327402740,1716043842830,-500.0,0.00027945,2]
[327402742,1716043842839,-500.0,0.00027945,2]
[327402745,1716043842849,-500.0,0.00027945,2]
[327402748,1716043842858,-515.82,0.00027945,2]
[327402751,1716043842870,-500.0,0.00027945,2]
[327402754,1716043842879,-344.30204982,0.00028216,2]
[327402757,1716043842888,-155.08356513,0.00028216,2]
[327402760,1716043842897,-500.0,0.00028216,2]
[327402763,1716043842906,-34841.63036582,0.00028217,2]
[327402773,1716043842983,-3118.3,0.00028217,2]
[327402775,1716043842994,-1653.749985,0.00028217,2]
[327402777,1716043843005,-15139.24168331,0.00028217,2]
[327402779,1716043843014,-500.0,0.00028217,2]
[327402781,1716043843024,-500.0,0.00028217,2]
[327402783,1716043843033,-500.0,0.00028217,2]
[327402785,1716043843042,-500.0,0.00028217,2]
[327402787,1716043843052,-500.0,0.00028217,2]
[327402789,1716043843060,-500.0,0.00028217,2]
[327402791,1716043843070,-500.0,0.00028217,2]
[327402793,1716043843079,-500.0,0.00028217,2]
[327402795,1716043843088,-500.0,0.00028217,2]
[327402797,1716043843097,-500.0,0.00028217,2]
[327402799,1716043843107,-122.98781245,0.00028217,2]
[327402801,1716043843121,-377.01218755,0.00028217,2]
[327402803,1716043843131,-500.0,0.00028217,2]
[327402805,1716043843141,-500.0,0.00028217,2]
[327402807,1716043843150,-500.0,0.00028217,2]
[327402809,1716043843160,-500.0,0.00028217,2]
[327402811,1716043843169,-500.0,0.00028217,2]
[327402813,1716043843178,-553.92947723,0.00028217,2]
[327402816,1716043843187,-500.0,0.00028217,2]
[327402818,1716043843196,-500.0,0.00028217,2]
[327402820,1716043843205,-500.0,0.00028217,2]
[327402821,1716043843214,-500.0,0.00028217,2]
[327402823,1716043843223,-500.0,0.00028217,2]
[327402825,1716043843233,-500.0,0.00028217,2]
[327402828,1716043843243,-500.0,0.00028217,2]
[327402830,1716043843251,-629.06,0.00028217,2]
[327402832,1716043843260,-500.0,0.00028217,2]
[327402834,1716043843269,-500.0,0.00028217,2]
[327402836,1716043843280,-500.0,0.00028217,2]
[327402837,1716043843292,-463.47828572,0.00028217,2]
[327402839,1716043843304,-36.52171428,0.00028217,2]
[327402840,1716043843314,-500.0,0.00028217,2]
[327402841,1716043843324,-500.0,0.00028217,2]
[327402842,1716043843333,-500.0,0.00028217,2]
[327402843,1716043843341,-173.3064243,0.00028217,2]
[327402844,1716043843354,-326.6935757,0.00028217,2]
[327402845,1716043843365,-500.0,0.00028217,2]
[327402846,1716043843375,-439.66290375,0.00028217,2]
[327402847,1716043843387,-60.33709625,0.00028217,2]
[327402848,1716043843396,-500.0,0.00028217,2]
[327402849,1716043843406,-500.0,0.00028217,2]
[327402850,1716043843415,-406.48928842,0.00028217,2]
[327402852,1716043843424,-500.0,0.00028217,2]
[327402854,1716043843434,-1163.37,0.00028217,2]
[327402856,1716043843443,-614.99,0.00028217,2]
[327402858,1716043843453,-500.0,0.00028217,2]
[327402860,1716043843462,-500.0,0.00028217,2]
[327402862,1716043843471,-500.0,0.00028217,2]
[327402864,1716043843480,-500.0,0.00028217,2]
[327402866,1716043843490,-500.0,0.00028217,2]
[327402868,1716043843499,-500.0,0.00028217,2]
[327402871,1716043843508,-500.0,0.00028217,2]
[327402873,1716043843518,-500.0,0.00028217,2]
[327402874,1716043843527,-500.0,0.00028217,2]
[327402877,1716043843536,-500.0,0.00028217,2]
[327402879,1716043843545,-500.0,0.00028217,2]
[327402881,1716043843556,-500.0,0.00028217,2]
[327402883,1716043843565,-542.62430924,0.00028217,2]
[327402885,1716043843574,-500.0,0.00028217,2]
[327402887,1716043843583,-500.0,0.00028217,2]
[327402889,1716043843593,-500.0,0.00028217,2]
[327402891,1716043843602,-500.0,0.00028217,2]
[327402893,1716043843611,-500.0,0.00028217,2]
[327402894,1716043843622,-500.0,0.00028217,2]
[327402896,1716043843632,-575.84,0.00028217,2]
[327402898,1716043843642,-310.4568392,0.00028217,2]
[327402900,1716043843651,-500.0,0.00028217,2]
[327402902,1716043843660,-500.0,0.00028217,2]
[327402905,1716043843671,-500.0,0.00028217,2]
[327402907,1716043843680,-500.0,0.00028217,2]
[327402909,1716043843690,-500.0,0.00028217,2]
[327402911,1716043843699,-239.96839634,0.00028217,2]
[327402913,1716043843708,-500.0,0.00028217,2]
[327402915,1716043843718,-500.0,0.00028217,2]
[327402917,1716043843727,-500.0,0.00028217,2]
[327402919,1716043843736,-500.0,0.00028217,2]
[327402921,1716043843745,-500.0,0.00028217,2]
[327402923,1716043843754,-500.0,0.00028217,2]
[327402925,1716043843763,-500.0,0.00028217,2]
[327402927,1716043843775,-500.0,0.00028217,2]
[327402929,1716043843784,-500.0,0.00028217,2]
[327402931,1716043843793,-786.04,0.00028217,2]
[327402933,1716043843803,-500.0,0.00028217,2]
[327402935,1716043843812,-500.0,0.00028217,2]
[327402937,1716043843822,-500.0,0.00028217,2]
[327402939,1716043843831,-500.0,0.00028217,2]
[327402941,1716043843841,-500.0,0.00028217,2]
[327402943,1716043843851,-1056.08,0.00028217,2]
[327402945,1716043843861,-500.0,0.00028217,2]
[327402947,1716043843873,-628.44,0.00028217,2]
[327402949,1716043843882,-553.98,0.00028217,2]
[327402952,1716043843892,-533.33,0.00028217,2]
[327402954,1716043843902,-500.0,0.00028217,2]
[327402956,1716043843911,-500.0,0.00028217,2]
[327402958,1716043843921,-500.0,0.00028217,2]
[327402960,1716043843930,-500.0,0.00028217,2]
[327402962,1716043843939,-500.0,0.00028217,2]
[327402964,1716043843948,-500.0,0.00028217,2]
[327402966,1716043843957,-500.0,0.00028217,2]
[327402968,1716043843967,-500.0,0.00028217,2]
[327402970,1716043843978,-500.0,0.00028217,2]
[327402972,1716043843988,-525.27,0.00028217,2]
[327402974,1716043843997,-500.0,0.00028217,2]
[327402976,1716043844007,-631.26,0.00028217,2]
[327402978,1716043844016,-1903.5,0.00028217,2]
[327402980,1716043844026,-1461.37,0.00028217,2]
[327402982,1716043844035,-3037.48,0.00028217,2]
[327402984,1716043844045,-500.0,0.00028217,2]
[327402986,1716043844054,-500.0,0.00028217,2]
[327402988,1716043844063,-500.0,0.00028217,2]
[327402990,1716043844073,-500.0,0.00028217,2]
[327402992,1716043844083,-500.0,0.00028217,2]
[327402994,1716043844092,-534.41,0.00028217,2]
[327402996,1716043844102,-3002.35,0.00028217,2]
[327402998,1716043844111,-500.0,0.00028217,2]
[327403000,1716043844121,-500.0,0.00028217,2]
[327403002,1716043844131,-2677.22,0.00028217,2]
[327403004,1716043844141,-707.42,0.00028217,2]
[327403006,1716043844150,-500.0,0.00028217,2]
[327403008,1716043844160,-500.0,0.00028217,2]
[327403010,1716043844170,-500.0,0.00028217,2]
[327403012,1716043844180,-486.26,0.00028217,2]
[327403014,1716043844190,-500.0,0.00028218,2]
[327403016,1716043844199,-500.0,0.00028218,2]
[327403018,1716043844209,-500.0,0.00028218,2]
[327403020,1716043844219,-584.61,0.00028218,2]
[327403022,1716043844229,-221.46,0.00028218,2]
[327403024,1716043844239,-500.0,0.00028218,2]
[327403026,1716043844249,-500.0,0.00028218,2]
[327403028,1716043844258,-500.0,0.00028218,2]
[327403031,1716043844268,-500.0,0.00028218,2]
[327403033,1716043844278,-500.0,0.00028218,2]
[327403035,1716043844292,-547.8,0.00028218,2]
[327403037,1716043844301,-500.0,0.00028218,2]
[327403039,1716043844310,-500.0,0.00028218,2]
[327403041,1716043844320,-508.47,0.00028218,2]
[327403043,1716043844330,-500.0,0.00028218,2]
[327403044,1716043844339,-429.19,0.00028218,2]
[327403047,1716043844349,-644.17,0.00028218,2]
[327403049,1716043844360,-679.02,0.00028218,2]
[327403051,1716043844372,-646.11,0.00028218,2]
[327403053,1716043844381,-500.0,0.00028218,2]
[327403055,1716043844391,-500.0,0.00028218,2]
[327403057,1716043844400,-219.71,0.00028218,2]
[327403059,1716043844409,-500.0,0.00028218,2]
[327403061,1716043844419,-500.0,0.00028218,2]
[327403063,1716043844429,-150.0,0.00028218,2]
[327403065,1716043844438,-500.0,0.00028218,2]
[327403067,1716043844448,-500.0,0.00028218,2]
[327403069,1716043844458,-948.82,0.00028218,2]
[327403071,1716043844467,-500.0,0.00028218,2]
[327403073,1716043844477,-500.0,0.00028218,2]
[327403075,1716043844486,-500.0,0.00028218,2]
[327403077,1716043844496,-2048.85,0.00028218,2]
[327403079,1716043844505,-728.94,0.00028218,2]
[327403081,1716043844515,-523.76,0.00028218,2]
[327403083,1716043844524,-500.0,0.00028218,2]
[327403085,1716043844534,-500.0,0.00028218,2]
[327403087,1716043844544,-500.0,0.00028218,2]
[327403089,1716043844554,-500.0,0.00028218,2]
[327403091,1716043844564,-500.0,0.00028218,2]
[327403093,1716043844574,-500.0,0.00028218,2]
[327403095,1716043844584,-500.0,0.00028218,2]
[327403097,1716043844594,-500.0,0.00028218,2]
[327403099,1716043844603,-500.0,0.00028218,2]
[327403101,1716043844614,-500.0,0.00028218,2]
[327403103,1716043844623,-500.0,0.00028218,2]
[327403105,1716043844633,-500.0,0.00028218,2]
[327403112,1716043844643,-500.0,0.00028218,2]
[327403119,1716043844653,-500.0,0.00028218,2]
[327403126,1716043844663,-500.0,0.00028218,2]
[327403133,1716043844673,-510.05,0.00028218,2]
[327403139,1716043844683,-500.0,0.00028218,2]
[327403143,1716043844693,-500.0,0.00028218,2]
[327403145,1716043844703,-500.0,0.00028218,2]
[327403147,1716043844712,-500.0,0.00028218,2]
[327403148,1716043844722,-630.09168297,0.00028218,2]
[327403150,1716043844731,-500.0,0.00028218,2]
[327403153,1716043844742,-805.79,0.00028218,2]
[327403155,1716043844751,-500.0,0.00028218,2]
[327403158,1716043844761,-500.0,0.00028218,2]
[327403160,1716043844771,-1678.78,0.00028218,2]
[327403161,1716043844780,-500.0,0.00028218,2]
[327403164,1716043844790,-627.29,0.00028218,2]
[327403167,1716043844800,-500.0,0.00028218,2]
[327403170,1716043844810,-1174.18,0.00028218,2]
[327403174,1716043844819,-4870.32,0.00028218,2]
[327403177,1716043844829,-575.52,0.00028218,2]
[327403180,1716043844838,-1151.34,0.00028218,2]
[327403183,1716043844848,-500.0,0.00028218,2]
[327403186,1716043844858,-2340.96,0.00028218,2]
[327403189,1716043844869,-772.43,0.00028218,2]
[327403192,1716043844879,-500.0,0.00028218,2]
[327403195,1716043844888,-500.0,0.00028218,2]
[327403198,1716043844898,-898.6,0.00028218,2]
[327403200,1716043844908,-659.13,0.00028218,2]
[327403202,1716043844917,-500.0,0.00028218,2]
[327403204,1716043844927,-500.0,0.00028218,2]
[327403207,1716043844936,-500.0,0.00028218,2]
[327403210,1716043844946,-500.0,0.00028218,2]
[327403213,1716043844956,-500.0,0.00028218,2]
[327403216,1716043844966,-292.1,0.00028218,2]
[327403218,1716043844976,-160.29,0.00028218,2]
[327403220,1716043844986,-659.07,0.00028218,2]
[327403222,1716043844997,-500.0,0.00028218,2]
[327403225,1716043845007,-500.0,0.00028218,2]
[327403227,1716043845017,-772.47,0.00028218,2]
[327403228,1716043845027,-500.0,0.00028218,2]
[327403230,1716043845037,-568.15,0.00028218,2]
[327403231,1716043845047,-500.0,0.00028218,2]
[327403232,1716043845057,-941.67,0.00028218,2]
[327403233,1716043845066,-500.0,0.00028218,2]
[327403234,1716043845076,-500.0,0.00028218,2]
[327403235,1716043845087,-500.0,0.00028218,2]
[327403236,1716043845096,-500.0,0.00028218,2]
[327403237,1716043845105,-342.33,0.00028218,2]
[327403238,1716043845116,-500.0,0.00028218,2]
[327403239,1716043845125,-500.0,0.00028218,2]
[327403240,1716043845135,-500.0,0.00028218,2]
[327403241,1716043845144,-734.54,0.00028218,2]
[327403242,1716043845154,-500.0,0.00028218,2]
[327403243,1716043845164,-500.0,0.00028218,2]
[327403244,1716043845174,-500.0,0.00028218,2]